Cogmind - Beta 16 @@@ ROGUE MODE // 2025.11.18 @ 15:57:32 Player: guru-sr Result: Destroyed by VE-HCY(R) with Subdweller Laser Performance ------------- Evolutions (0) 0 Regions Visited (2) 400 Robots Destroyed (31) 155 Value Destroyed (651) 651 Prototype IDs (0) 0 Alien Tech Used (0) 0 Bonus (0) 0 TOTAL SCORE: 1206 Bonus ------- None Cogmind --------- Core Integrity 0/250 Matter 257/300 Energy 246/265 System Corruption 2% Temperature Cool (6) Movement Rolling (150) Ox4 Location -10/Subcaves Parts ------- > --- POWER (1) -------- Improved Ion Engine > --- PROPULSION (2) --- Light Treads Subdweller Monowheel > --- UTILITY (2) ------ Huge Storage Unit Visual Processing Unit > --- WEAPON (2) ------- Subdweller Laser (fused) Subdweller Machine Gun > --- INVENTORY (25) --- Improved Ion Engine Improved Ion Engine Improved Ion Engine Spiked Treads Spiked Treads Compact Wheel Compact Wheel Heat Sink Improved Heat Sink High-capacity Matter Pod (200) Signal Interpreter Improved Terrain Scanner Seismic Detector Hacking Suite Spread Laser Spread Laser Spread Laser Spread Laser Battle Rifle Grenade Launcher Grenade Launcher Grenade Launcher Mining Laser Peak State ------------ > --- POWER ------------ Improved Ion Engine > --- PROPULSION ------- Light Treads Subdweller Monowheel > --- UTILITY ---------- Huge Storage Unit Visual Processing Unit > --- WEAPON ----------- Subdweller Laser Subdweller Machine Gun > --- INVENTORY -------- Improved Ion Engine Improved Ion Engine Improved Ion Engine Light Treads Compact Wheel Compact Wheel Heat Sink Heat Sink Improved Heat Sink Disposable Heat Sink High-capacity Matter Pod Signal Interpreter Improved Terrain Scanner Seismic Detector Hacking Suite Spread Laser Spread Laser Spread Laser Spread Laser Subdweller Machine Gun Grenade Launcher Grenade Launcher Grenade Launcher Mining Laser Shrapnel Trap [Rating: 16] Favorites ----------- Power Improved Ion Engine Engine Improved Ion Engine Propulsion Light Treads Treads Light Treads Wheel Compact Wheel Utility Huge Storage Unit Device Improved Terrain Scanner Storage Huge Storage Unit Processor Visual Processing Unit Weapon Medium Laser Energy Gun Medium Laser Ballistic Gun Assault Rifle Special Weapon Mining Laser Build | -11 -10 -10 ------- Run | Yrd Mat Sub Slots Evolved . | . . . Power . | . . . Propulsion . | . . . Utility . | . . . Weapon . | . . . Parts Attached 25 | 7 8 10 Power 3 | 1 2 . Engine 3 | 1 2 . Core . | . . . Reactor . | . . . Propulsion 7 | 2 1 4 Treads 3 | 2 . 1 Leg . | . . . Wheel 4 | . 1 3 Hover . | . . . Flight . | . . . Utility 5 | 2 3 . Device 1 | 1 . . Storage 3 | 1 2 . Processor 1 | . 1 . Hackware . | . . . Protection . | . . . Artifact . | . . . Weapon 10 | 2 2 6 Energy Gun 5 | 1 . 4 Energy Cannon . | . . . Ballistic Gun 4 | 1 1 2 Ballistic Cannon . | . . . Launcher . | . . . Special Weapon 1 | . 1 . Impact Weapon . | . . . Slashing Weapon . | . . . Piercing Weapon . | . . . Special Melee Weapon . | . . . Unidentified Prototypes . | . . . Parts Lost 4 | . 3 1 Power . | . . . Propulsion 1 | . 1 . Utility 1 | . 1 . Weapon 2 | . 1 1 Highest Loss Streak 1 | . 1 1 To Critical Strikes . | . . . Average Backups 16 | 2 14 23 Power 2 | . 2 3 Propulsion 1 | 1 1 3 Utility 6 | . 5 8 Weapon 6 | . 5 8 Tool/Special . | . . . Unused Backups 26 | . 2 24 Power 5 | . 2 3 Propulsion 3 | . . 3 Utility 10 | . . 10 Weapon 8 | . . 8 Tool/Special . | . . . Average Slot Usage (%) 99 | . 99 100 Engine 13 | . 13 14 Treads 14 | . 15 14 Wheel 13 | . 12 14 Device 3 | . 5 . Storage 14 | . 14 14 Processor 10 | . 8 14 Energy Gun 12 | . 11 12 Ballistic Gun 13 | . 14 13 Special Weapon 1 | . 2 1 Peak Build Rating 16 | 9 12 16 Average Rating 11 | 6 9 15 On Entrance 7 | . 9 12 Avg Prop Armor Cover (%) 13 | . 13 13 Naked Turns . | . . . Heaviest Build 95 | 12 89 95 Greatest Support 40 | 40 40 20 Greatest Overweight (x) 5 | 1 5 5 Average Overweight (x) 3 | . 4 4 Largest Inventory Capacity 25 | 8 25 25 Average Capacity 22 | 7 22 25 Most Carried 25 | 5 25 25 Average Carried 16 | 2 14 24 Final Capacity 25 | 8 25 25 Final Carried 24 | 5 24 23 Class Distribution -------------------- 79% | Mutant 20% | Scavenger-Mutant Dominant Class ---------------- Mutant | -10/Materials Scavenger-Mutant | -10/Subcaves Resources | -11 -10 -10 ----------- Run | Yrd Mat Sub Matter Collected 1088 | 283 483 322 Remotely . | . . . Salvage Created 910 | 173 561 176 Parts 64 | 10 40 14 Haulers Intercepted 1 | . 1 . Recyclers Shooed 1 | . 1 . Parts Field Recycled . | . . . Retrieved Matter . | . . . Parts Self-Destructed 2 | . . 2 Prevented . | . . . Parts Restored . | . . . Kills | -11 -10 -10 ------- Run | Yrd Mat Sub Combat Hostiles Destroyed 19 | . 15 4 Guns 18 | . 14 4 Classes Destroyed 10 | 3 5 2 Worker 2 | 1 1 . Tunneler 4 | 4 . . Hauler 1 | . 1 . Recycler 1 | 1 . . Operator 2 | . 2 . Watcher 2 | . 2 . Swarmer 6 | . 6 . Grunt 9 | . 9 . Artisan 1 | . . 1 Subdweller 4 | . . 4 Best Kill Streak 3 | 2 3 1 Combat Bots Only 3 | . 3 1 Max Kills in Single Turn 2 | 1 2 1 Gunslinging . | . . . Exploded . | . . . Melee . | . . . Uniques/NPCs Destroyed . | . . . Combat | -11 -10 -10 -------- Run | Yrd Mat Sub Hostile Shots Fired 106 | . 76 30 Missed 31 | . 27 4 Hits 75 | . 49 26 Projectile 75 | . 49 26 Critical Strikes 1 | . . 1 Damage Taken 1074 | . 543 531 Core 268 | . 150 118 Absorbed by Shields . | . . . Core Remaining (%) 100 | 100 . . Volleys Fired 128 | 13 80 35 Largest 2 | 2 2 2 Hottest 100 | 70 100 100 Shots Fired 203 | 26 121 56 Gun 175 | 26 106 43 Cannon . | . . . Launcher . | . . . Special 28 | . 15 13 Kinetic 100 | 13 65 22 Thermal 103 | 13 56 34 Explosive . | . . . Electromagnetic . | . . . Robot Hit Streak 14 | 8 13 14 Robot Miss Streak 4 | 2 4 2 Penetration Max . | . . . Secondary Targets 3 | . 3 . Max Gunslinging Chain 1 | . 1 . Shots Hit Robots 127 | 18 73 36 Core Hits 56 | 9 36 11 Critical Kills . | . . . Critical Parts Destroyed . | . . . Critical Strikes 7 | 2 3 2 Burn 7 | 2 3 2 Melee Attacks . | . . . Impact . | . . . Slashing . | . . . Piercing . | . . . Sneak Attacks . | . . . Combat Hostiles . | . . . Follow-up Attacks . | . . . Damage Inflicted 1777 | 213 936 628 Guns 1777 | 213 936 628 Cannons . | . . . Explosions . | . . . Melee . | . . . Ramming . | . . . Kinetic 961 | 63 533 365 Thermal 816 | 150 403 263 Explosive . | . . . Electromagnetic . | . . . Impact . | . . . Slashing . | . . . Piercing . | . . . Highest Corruption 2 | . 2 2 Average Corruption 2 | . 2 2 Corruption Purged . | . . . Corruption Blocked . | . . . Effects 30 | . 17 13 Message Errors 10 | . 6 4 Matter Fused 4 | . 1 3 Heat Flow Errors 3 | . 3 . Energy Discharges 5 | . 2 3 Parts Fused 1 | . . 1 Data Loss (minor) 6 | . 4 2 Data Loss (major) 1 | . 1 . Overload Shots . | . . . Overflow Damage . | . . . Projectiles . | . . . Explosions . | . . . Melee . | . . . Knockbacks . | . . . Impact . | . . . Kinetic . | . . . Secondary . | . . . Self-Inflicted Damage . | . . . Shots . | . . . Rammed . | . . . Targets Rammed . | . . . Kicked . | . . . Crushed . | . . . Highest Temperature 284 | 52 284 . Average Temperature 57 | 24 62 . Received Heat Transfer 309 | . 201 108 Effects 5 | . 5 . Energy Bleed 1 | . 1 . Interference 4 | . 4 . Siege Activations . | . . . Martial Activations . | . . . Shielding Activations . | . . . Robots Disrupted . | . . . Combat Hostiles . | . . . Robots Corrupted . | . . . Combat Hostiles . | . . . Parts Fried . | . . . Impact Corruptions . | . . . Robots Melted 1 | . 1 . Combat Hostiles 1 | . 1 . Parts Melted 6 | 4 2 . Heat Transferred 2581 | 592 1406 583 Parts Sabotaged . | . . . Parts Stolen . | . . . Parts Stripped . | . . . Power Chain Reactions . | . . . Alert | -11 -10 -10 ------- Run | Yrd Mat Sub Maximum Alert Level . | . . . Low Security (%) 100 | 100 100 . Level 1 . | . . . Level 2 . | . . . Level 3 . | . . . Level 4 . | . . . Level 5 . | . . . High Security . | . . . Max Security . | . . . Peak Influence 127 | 10 127 . Initial . | . . . Average 44 | 1 50 . Influence Increases 583 | 30 553 . Destroy 0b10 Robot/C 300 | . 300 . Destroy 0b10 Robot/NC 60 | 30 30 . Destroy Leader 76 | . 76 . Successful Hack 16 | . 16 . Select Force Hacks 60 | . 60 . Disable Machine 15 | . 15 . Destroy Structure 11 | . 11 . Lose Combat Pursuer 45 | . 45 . Influence Decreases 583 | 30 443 110 Entered New Map 54 | . . 54 Time Decay 509 | 30 423 56 Lost Part 20 | . 20 . Squads Dispatched 5 | . 5 . Investigation 3 | . 3 . Extermination . | . . . Reinforcement 2 | . 2 . Assault . | . . . Garrison . | . . . Intercept . | . . . Searches Triggered . | . . . Construction Impeded . | . . . Haulers Reinforced . | . . . Active Scanning Responses . | . . . Cargo Convoy Interrupts . | . . . Stealth | -11 -10 -10 --------- Run | Yrd Mat Sub Distress Signals 3 | . 3 . Communications Jammed . | . . . Distress Signals . | . . . Times Spotted 29 | . 23 6 Peak Tracking Total 4 | . 4 1 Tactical Retreats 1 | . 1 . Traps | -11 -10 -10 ------- Run | Yrd Mat Sub Traps Triggered 4 | . 4 . Indirectly . | . . . Trap Hack Attempts . | . . . Triggered . | . . . Disarmed . | . . . Reprogrammed . | . . . Reused 1 | . . 1 Traps Extracted . | . . . Installed 1 | . . 1 Triggered . | . . . Most Traps Carried 1 | . . 1 Machines | -11 -10 -10 ---------- Run | Yrd Mat Sub Machines Disabled 1 | . 1 . Max in Single Turn 1 | . 1 . Machines Repaired . | . . . Machines Dismantled . | . . . Machines Sabotaged . | . . . Overloaded Fab Kills . | . . . Hacking | -11 -10 -10 --------- Run | Yrd Mat Sub Machines Accessed 8 | . 8 . Terminals 6 | . 6 . Fabricators . | . . . Repair Stations . | . . . Recycling Units 2 | . 2 . Scanalyzers . | . . . Garrison Access . | . . . Total Hacks 21 | . 21 . Successful 9 | . 9 . Failed 12 | . 12 . Catastrophic 1 | . 1 . Database Lockouts . | . . . Manual 14 | . 14 . Terminals 17 | . 17 . Fabricators . | . . . Repair Stations . | . . . Recycling Units 4 | . 4 . Scanalyzers . | . . . Garrison Access . | . . . Terminal Hacks 2 | . 2 . Terminal Index 1 | . 1 . Recycling Unit Index 1 | . 1 . Fabricator Hacks . | . . . Repair Station Hacks . | . . . Recycling Unit Hacks 2 | . 2 . Report Inventory 2 | . 2 . Scanalyzer . | . . . Garrison Access Hacks . | . . . Unauthorized Hacks 5 | . 5 . Terminals 3 | . 3 . Botnet 2 | . 2 . Operators 1 | . 1 . Fabricators . | . . . Repair Stations . | . . . Recycling Units 2 | . 2 . Tunnel 2 | . 2 . Scanalyzers . | . . . Garrison Access . | . . . Data Cores Recovered . | . . . Used . | . . . Hacking Detections 6 | . 6 . Full Trace Events . | . . . Feedback Events . | . . . Feedback Blocked . | . . . Robot Schematics Acquired . | . . . Robots Built . | . . . Authchips . | . . . Time . | . . . Total Robot Build Rating . | . . . Part Schematics Acquired . | . . . Parts Built . | . . . Authchips . | . . . Time . | . . . Total Part Build Rating . | . . . Part Studies Acquired . | . . . Parts Repaired . | . . . Time . | . . . Parts Recycled . | . . . Recycled Matter . | . . . Retrieved Matter . | . . . Retrieved Components . | . . . Parts Scanalyzed . | . . . Part Schematics Acquired . | . . . Parts Damaged . | . . . Bothacking | -11 -10 -10 ------------ Run | Yrd Mat Sub Used RIF Installer . | . . . Robots Hacked . | . . . Non-combat . | . . . Combat . | . . . Robot Hacks Applied . | . . . Relay Couplers Released . | . . . Fabnet Peak Effective % . | . . . Robots Rewired . | . . . Allies Hacked . | . . . Hacks Repelled . | . . . Allies | -11 -10 -10 -------- Run | Yrd Mat Sub Total Allies . | . . . Largest Group . | . . . Highest-Rated Group . | . . . Highest-Rated Ally . | . . . Total Orders . | . . . Ally Attacks . | . . . Total Damage . | . . . Kills . | . . . Allies Corrupted . | . . . Allies Melted . | . . . Intel | -11 -10 -10 ------- Run | Yrd Mat Sub Active Infowar (turns) 2695 | 46 1639 1010 Optics 2036 | . 1026 1010 Terrain 659 | 46 613 . Robot Analysis Total . | . . . Derelict Logs Recovered 1 | . . 1 Drone Launches . | . . . Drone Recoveries . | . . . Exploration | -11 -10 -10 ------------- Run | Yrd Mat Sub Turns Passed 2910 | 247 1653 1010 Spaces Moved 1464 | 125 789 550 Core 17 | 17 . . Treads 175 | 108 67 . Legs . | . . . Wheels 1272 | . 722 550 Hover . | . . . Flight . | . . . Fastest Speed 50 | 50 130 150 Average Speed 159 | 145 167 151 Slowest Speed 175 | 160 175 175 Overloaded Moves . | . . . Propulsion Burnouts . | . . . Robots Hopped . | . . . Potential Cave-ins . | . . . Cave-ins Triggered . | . . . Exploration Rate (%) 44 | 6 99 28 Regions Visited 2 Branch Regions 1 Pre-discovered Areas 2 | . 2 . Known Exits Taken . | . . . Unknown Exits Taken 2 | 1 1 . Scrap Searched 6 | . . 6 Spaces Dug 15 | . 11 4 Terrain Destroyed 15 | . 11 4 Melee . | . . . Projectile 15 | . 11 4 AOE . | . . . Terrain Rammed . | . . . Walls Destroyed . | . . . Machines Disabled . | . . . Actions | -11 -10 -10 --------- Run | Yrd Mat Sub Total 1775 | 164 966 645 Wait 74 | 13 47 14 Move 1462 | 124 788 550 Hop . | . . . Pick Up 44 | 7 25 12 Fast Attach 6 | 5 1 . Attach 12 | 2 4 6 Detach . | . . . Swap 31 | . 16 15 Drop 17 | . 5 12 Fire 128 | 13 80 35 Melee . | . . . Ram . | . . . Kick . | . . . Crush . | . . . Escape Stasis . | . . . Rewire . | . . . Trap 1 | . . 1 Miscellaneous . | . . . Route ------- -11/Scrapyard -10/Materials (discovered 6 exits: [*Mat x3] / [*Min x2] / [*Sub]) -10/Subcaves (discovered 1 exit: Rec) History --------- Turn | Location | Event 28 | -11/Scrapyard | Discovered new exit (range 15) 248 | -11/Scrapyard | Entered Materials 309 | -10/Materials | Build established: Mutant 356 | -10/Materials | Discovered new exit (range 14) 604 | -10/Materials | Discovered new exit (range 11) 639 | -10/Materials | Discovered new exit (range 14) 843 | -10/Materials | Discovered new exit (range 7) 1201 | -10/Materials | Discovered new exit (range 14) 1421 | -10/Materials | Discovered new exit (range 13) 1537 | -10/Materials | Core integrity fell below 50% 1901 | -10/Materials | Entered Subcaves 1952 | -10/Subcaves | Disturbed a concealed Subdweller 2123 | -10/Subcaves | Ambushed by angry Subdweller bent on revenge 2492 | -10/Subcaves | Identified exit to Recycling 2629 | -10/Subcaves | Build established: Scavenger-Mutant 2668 | -10/Subcaves | Disturbed a concealed Subdweller 2693 | -10/Subcaves | Core integrity fell below 20% 2899 | -10/Subcaves | Ambushed by Subdweller buried in earth 2911 | -10/Subcaves | Destroyed by VE-HCY(R) with Subdweller Laser Last Messages --------------- 02718_ Acquired 4 matter. 02721_ Dropped Lgt. Treads. 02724_ Acquired Spk. Treads. 02725_ Acquired 10 matter. 02727_ Searching scrap... 02727_ Found Riot Gun. 02727_ Found Battle Rifle. 02727_ Found 31 Matter. 02733_ EICGUF,T PF:DUNE8CL>AN 02734_ Dropped Heat Sink. 02735_ Dropped Disposable Heat Sink. 02738_ Acquired Battle Rifle. 02762_ Subatomizers dissect the Sub. Optics. 02768_ System corrupted: Sub. Laser fused. 02774_ Subatomizers dissect the Sub. Optics. 02848_ :BCJV77UX3QG:N<4RNDQ